fUST/lending_fUST_20260107
["ID","MTS","AMOUNT","RATE_DAILY","PERIOD"]
[400604309,1767740647394,752.6,9.689e-05,2]
[400604310,1767740647823,846.67,0.00010035,2]
[400604311,1767740648287,940.75,0.00010381,2]
[400604312,1767740702477,300.0,0.00010603,2]
[400604313,1767740726075,176.52,8.925e-05,2]
[400604314,1767740726485,205.94,9.269e-05,2]
[400604315,1767740726923,235.36,9.612e-05,2]
[400604316,1767740727355,264.78,9.955e-05,2]
[400604317,1767740727780,294.2,0.00010299,2]
[400604318,1767740736212,-300.0,0.00010604,2]
[400604319,1767740736249,-300.0,0.00010604,2]
[400604320,1767740736283,-300.0,0.00010604,2]
[400604321,1767740736317,-300.0,0.00010604,2]
[400604322,1767740736353,-300.0,0.00010604,2]
[400604323,1767740736386,-300.0,0.00010604,2]
[400604324,1767740736424,-300.0,0.00010604,2]
[400604325,1767740736456,-300.0,0.00010604,2]
[400604326,1767740736489,-300.0,0.00010604,2]
[400604327,1767740736523,-300.0,0.00010604,2]
[400604328,1767740736556,-300.0,0.00010604,2]
[400604329,1767740736591,-300.0,0.00010604,2]
[400604330,1767740736624,-300.0,0.00010604,2]
[400604331,1767740736657,-300.0,0.00010604,2]
[400604332,1767740736691,-300.0,0.00010604,2]
[400604333,1767740870594,299.7547643,0.0001025,2]
[400604363,1767741032617,-292.81072895,0.00011111,2]
[400604364,1767741032629,-283.18927105,0.00011111,2]
[400604365,1767741032638,-270.11008847,0.00011111,2]
[400604366,1767741032647,-391.03108,0.00011618,2]
[400604367,1767741032658,-318.72990439,0.00013111,2]
[400604368,1767741032667,-391.03108,0.00013187,2]
[400604369,1767741032677,-300.0,0.00013272,2]
[400604370,1767741032686,-500.0,0.00013273,2]
[400604371,1767741032695,-500.0,0.00013273,2]
[400604372,1767741032704,-500.0,0.00013273,2]
[400604374,1767741032714,-500.0,0.00013273,2]
[400604376,1767741032724,-500.0,0.00013273,2]
[400604377,1767741032734,-500.0,0.00013273,2]
[400604378,1767741032743,-500.0,0.00013273,2]
[400604379,1767741032753,-500.0,0.00013273,2]
[400604380,1767741032763,-500.0,0.00013273,2]
[400604381,1767741032773,-500.0,0.00013273,2]
[400604382,1767741032783,-500.0,0.00013273,2]
[400604383,1767741032792,-500.0,0.00013273,2]
[400604384,1767741032802,-151.0,0.000134,2]
[400604385,1767741032813,-151.0,0.000134,2]
[400604386,1767741032824,-8160.89671707,0.00013437,2]
[400604387,1767741032834,-151.0,0.000135,2]
[400604388,1767741032843,-151.0,0.000135,2]
[400604389,1767741032854,-151.0,0.000135,2]
[400604390,1767741032863,-151.0,0.000135,2]
[400604391,1767741032873,-151.0,0.000135,2]
[400604392,1767741032882,-151.0,0.000135,2]
[400604393,1767741032892,-151.0,0.000135,2]
[400604394,1767741032902,-151.0,0.000135,2]
[400604395,1767741032911,-500.0,0.00013518,2]
[400604396,1767741032921,-396.26393413,0.00013518,2]
[400604397,1767741032930,-628.49954355,0.00013518,2]
[400604398,1767741032939,-478.133411,0.00013518,2]
[400604399,1767741032949,-628.49954355,0.00013518,2]
[400604400,1767741032959,-628.49954355,0.00013518,2]
[400604401,1767741032968,-628.49954355,0.00013518,2]
[400604402,1767741032978,-628.49954355,0.00013518,2]
[400604403,1767741032988,-500.0,0.00013518,2]
[400604404,1767741032997,-628.49954355,0.00013518,2]
[400604405,1767741033007,-9082.9889653,0.00013519,2]
[400604406,1767741033021,-967.1592,0.00013519,2]
[400604426,1767741038920,-628.49954355,0.00013518,2]
[400604428,1767741038930,-500.0,0.00013518,2]
[400604430,1767741038940,-628.49954355,0.00013518,2]
[400604432,1767741038950,-628.49954355,0.00013518,2]
[400604435,1767741038960,-628.49954355,0.00013518,2]
[400604437,1767741038970,-500.0,0.00013518,2]
[400604439,1767741038979,-500.0,0.00013518,2]
[400604441,1767741038989,-500.0,0.00013518,2]
[400604443,1767741039000,-628.49954355,0.00013518,2]
[400604445,1767741039010,-500.0,0.00013518,2]
[400604447,1767741039020,-432.62119776,0.00013518,2]
[400604449,1767741039031,-500.0,0.00013518,2]
[400604451,1767741039042,-500.0,0.00013518,2]
[400604453,1767741039052,-500.0,0.00013518,2]
[400604455,1767741039066,-500.0,0.00013518,2]
[400604457,1767741039076,-500.0,0.00013518,2]
[400604459,1767741039087,-500.0,0.00013518,2]
[400604462,1767741039099,-413.5723085,0.00013518,2]
[400604464,1767741039109,-500.0,0.00013518,2]
[400604465,1767741039119,-500.0,0.00013518,2]
[400604466,1767741039129,-395.55090826,0.00013518,2]
[400604467,1767741039139,-500.0,0.00013518,2]
[400604468,1767741039149,-500.0,0.00013518,2]
[400604469,1767741039158,-500.0,0.00013518,2]
[400604470,1767741039168,-500.0,0.00013518,2]
[400604471,1767741039178,-500.0,0.00013518,2]
[400604472,1767741039188,-628.49954355,0.00013518,2]
[400604473,1767741039198,-500.0,0.00013518,2]
[400604474,1767741039208,-500.0,0.00013518,2]
[400604475,1767741039218,-500.0,0.00013518,2]
[400604476,1767741039228,-500.0,0.00013518,2]
[400604477,1767741039237,-500.0,0.00013518,2]
[400604480,1767741039384,-628.49954355,0.00013518,2]
[400604483,1767741039405,-500.0,0.00013518,2]
[400604485,1767741039415,-343.16192336,0.00013518,2]
[400604487,1767741039424,-433.1493942,0.00013518,2]
[400604488,1767741039434,-500.0,0.00013518,2]
[400604490,1767741039444,-500.0,0.00013518,2]
[400604493,1767741039454,-500.0,0.00013518,2]
[400604495,1767741039463,-989949.8518347,0.00013519,2]
[400604497,1767741039472,-600.0,0.00013537,2]
[400604499,1767741039481,-300.0,0.00013537,2]
[400604501,1767741039490,-300.0,0.00013537,2]
[400604503,1767741039500,-300.0,0.00013537,2]
[400604505,1767741039510,-300.0,0.00013537,2]
[400604507,1767741039519,-300.0,0.00013537,2]
[400604509,1767741039530,-300.0,0.00013537,2]
[400604511,1767741039540,-300.0,0.00013537,2]
[400604513,1767741039550,-300.0,0.00013537,2]
[400604515,1767741039560,-300.0,0.00013537,2]
[400604517,1767741039571,-300.0,0.00013537,2]
[400604519,1767741039583,-300.0,0.00013537,2]
[400604521,1767741039593,-300.0,0.00013537,2]
[400604523,1767741039603,-300.0,0.00013537,2]
[400604525,1767741039614,-3607.59131572,0.00013573,2]
[400604527,1767741039624,-151.0,0.000136,2]
[400604529,1767741039634,-151.0,0.000136,2]
[400604531,1767741039645,-151.0,0.000136,2]
[400604533,1767741039655,-151.0,0.000136,2]
[400604535,1767741039664,-207.137,0.00013619,2]
[400604537,1767741039674,-300.0,0.00013673,2]
[400604539,1767741039683,-500.0,0.00013698,2]
[400604541,1767741039693,-500.0,0.00013698,2]
[400604543,1767741039703,-500.0,0.00013698,2]
[400604545,1767741039712,-500.0,0.00013698,2]
[400604547,1767741039721,-500.0,0.00013698,2]
[400604549,1767741039734,-184.19130512,0.00013698,2]
[400604552,1767741039743,-1000.0,0.00013699,2]
[400604554,1767741039754,-500.0,0.00013699,2]
[400604555,1767741039763,-500.0,0.00013699,2]
[400604557,1767741039772,-500.0,0.00013699,2]
[400604559,1767741039783,-501.56829016,0.00013699,2]
[400604561,1767741039792,-500.0,0.00013699,2]
[400604563,1767741039801,-500.0,0.00013699,2]
[400604565,1767741039811,-500.0,0.00013699,2]
[400604567,1767741039820,-500.0,0.00013699,2]
[400604569,1767741039830,-500.0,0.00013699,2]
[400604571,1767741039840,-540.98419624,0.00013699,2]
[400604573,1767741039849,-500.0,0.00013699,2]
[400604575,1767741039863,-500.0,0.00013699,2]
[400604577,1767741039872,-500.0,0.00013699,2]
[400604579,1767741039882,-500.0,0.00013699,2]
[400604581,1767741039891,-501.00450759,0.00013699,2]
[400604583,1767741039901,-634.09365022,0.00013699,2]
[400604585,1767741039911,-500.0,0.00013699,2]
[400604587,1767741039921,-500.2666594,0.00013699,2]
[400604589,1767741039930,-526.06901587,0.00013699,2]
[400604591,1767741039939,-500.0,0.00013699,2]
[400604593,1767741039948,-343.49392703,0.00013699,2]
[400604595,1767741039959,-500.0,0.00013699,2]
[400604597,1767741039968,-500.0,0.00013699,2]
[400604599,1767741039978,-500.0,0.00013699,2]
[400604601,1767741039987,-500.0,0.00013699,2]
[400604603,1767741039997,-500.0,0.00013699,2]
[400604605,1767741040006,-500.0,0.00013699,2]
[400604607,1767741040016,-500.0,0.00013699,2]
[400604609,1767741040026,-500.0,0.00013699,2]
[400604611,1767741040036,-500.0,0.00013699,2]
[400604613,1767741040045,-500.0,0.00013699,2]
[400604615,1767741040055,-254.27500282,0.00013699,2]
[400604617,1767741040064,-500.0,0.00013699,2]
[400604619,1767741040073,-500.93963039,0.00013699,2]
[400604621,1767741040083,-500.0,0.00013699,2]
[400604623,1767741040094,-500.0,0.00013699,2]
[400604625,1767741040103,-500.7233053,0.00013699,2]
[400604627,1767741040113,-351.22077635,0.00013699,2]
[400604629,1767741040122,-899.54515289,0.00013821,2]
[400604631,1767741040132,-502.25371869,0.00013821,2]
[400604633,1767741040141,-1000.0,0.00013821,2]
[400604635,1767741040150,-1000.0,0.00013821,2]
[400604637,1767741040160,-1000.0,0.00013821,2]
[400604639,1767741040169,-603.20077108,0.00013821,2]
[400604641,1767741040179,-1000.0,0.00013821,2]
[400604643,1767741040189,-1000.0,0.00013821,2]
[400604645,1767741040198,-1000.0,0.00013821,2]
[400604647,1767741040207,-565.47530985,0.00013821,2]
[400604649,1767741040216,-14629.77162275,0.0001386,2]
[400604651,1767741040226,-163.60914411,0.00013973,2]
[400604653,1767741040235,-290.82657225,0.00014175,2]
[400604655,1767741040244,-600.0,0.00014221,2]
[400604657,1767741040254,-520.45931442,0.00014247,2]
[400604659,1767741040264,-504.33287174,0.00014247,2]
[400604661,1767741040274,-500.0,0.00014247,2]
[400604663,1767741040283,-500.0,0.00014247,2]
[400604665,1767741040293,-500.0,0.00014247,2]
[400604667,1767741040301,-500.84667986,0.00014247,2]
[400604669,1767741040311,-500.61401424,0.00014247,2]
[400604671,1767741040320,-500.76143899,0.00014247,2]
[400604673,1767741040330,-1000.0,0.00014247,2]
[400604675,1767741040343,-1000.0,0.00014247,2]
[400604677,1767741040352,-500.0,0.00014247,2]
[400604679,1767741040361,-580.83767681,0.00014247,2]
[400604681,1767741040371,-1000.0,0.00014247,2]
[400604683,1767741040381,-1000.0,0.00014247,2]
[400604685,1767741040391,-1000.0,0.00014247,2]
[400604687,1767741040400,-500.0,0.00014247,2]
[400604689,1767741040409,-500.84600982,0.00014247,2]
[400604691,1767741040419,-500.0,0.00014368,2]
[400604693,1767741040428,-1500.0,0.00014368,2]
[400604695,1767741040437,-1500.0,0.00014368,2]
[400604697,1767741040447,-1500.0,0.00014368,2]
[400604699,1767741040456,-1500.0,0.00014368,2]
[400604701,1767741040465,-420.0,0.00014551,2]
[400604703,1767741040475,-714.70980768,0.00014572,2]
[400604705,1767741040486,-8321.0,0.00014657,2]
[400604707,1767741040495,-500.0,0.00014658,2]
[400604709,1767741040505,-391.03108,0.00014755,2]
[400604711,1767741040515,-727.40712175,0.00014768,2]
[400604713,1767741040524,-8321.0,0.00014794,2]
[400604715,1767741040536,-533.7772006,0.00014795,2]
[400604717,1767741040546,-1500.0,0.00014795,2]
[400604719,1767741040555,-1500.0,0.00014795,2]
[400604721,1767741040564,-1500.0,0.00014795,2]
[400604723,1767741040573,-1500.0,0.00014795,2]
[400604725,1767741040582,-500.0,0.00014795,2]
[400604727,1767741040592,-100000.0,0.00014882,2]
[400604729,1767741040601,-720.0,0.00014891,2]
[400604731,1767741040611,-2000.0,0.00014916,2]
[400604733,1767741040620,-2000.0,0.00014916,2]
[400604735,1767741040629,-8321.0,0.00014931,2]
[400604737,1767741040638,-500.0,0.00014932,2]
[400604739,1767741040647,-1000.0,0.00015,2]
[400604741,1767741040656,-250.0,0.00015025,2]
[400604743,1767741040666,-8321.0,0.00015068,2]
[400604745,1767741040676,-191.914214,0.00015068,2]
[400604747,1767741040685,-155.4754909,0.00015069,2]
[400604749,1767741040694,-500.0,0.00015069,2]
[400604751,1767741040703,-367.34972032,0.00015111,2]
[400604753,1767741040713,-8321.0,0.00015205,2]
[400604755,1767741040722,-200.0,0.00015206,2]
[400604757,1767741040731,-500.0,0.00015206,2]
[400604759,1767741040741,-8321.0,0.00015342,2]
[400604761,1767741040750,-2000.0,0.00015342,2]
[400604763,1767741040759,-2000.0,0.00015342,2]
[400604765,1767741040768,-2000.0,0.00015342,2]
[400604767,1767741040778,-2000.0,0.00015342,2]
[400604769,1767741040787,-500.0,0.00015343,2]
[400604771,1767741040797,-442.13238472,0.00015464,2]
[400604773,1767741040807,-2500.0,0.00015464,2]
[400604775,1767741040816,-8321.0,0.00015479,2]
[400604777,1767741040826,-500.0,0.0001548,2]
[400604779,1767741040836,-8321.0,0.00015616,2]
[400604781,1767741040846,-500.0,0.00015617,2]
[400604783,1767741040855,-8321.0,0.00015753,2]
[400604785,1767741040865,-558.00072349,0.00015754,2]
[400604787,1767741040875,-8321.0,0.0001589,2]
[400604789,1767741040884,-2500.0,0.0001589,2]
[400604791,1767741040894,-2518.27095848,0.0001589,2]
[400604793,1767741040904,-2500.0,0.0001589,2]
[400604795,1767741040914,-1354.09851371,0.0001589,2]
[400604797,1767741040923,-14628.0,0.00015939,2]
[400604799,1767741040932,-587.0,0.00015953,2]
[400604801,1767741040941,-2887.16845353,0.00016012,2]
[400604803,1767741040951,-8321.0,0.00016027,2]
[400604805,1767741040960,-8321.0,0.00016164,2]
[400604807,1767741040969,-8321.0,0.00016301,2]
[400604809,1767741040979,-864.0,0.0001638,2]
[400604811,1767741040988,-3000.0,0.00016438,2]
[400604813,1767741040998,-183.81,0.0001644,2]
[400604815,1767741041007,-183.81,0.0001644,2]
[400604817,1767741041016,-200.0,0.00016473,2]
[400604819,1767741041026,-8160.89671705,0.00016843,2]
[400604821,1767741041036,-1041.66666667,0.00016934,2]
[400604823,1767741041046,-3500.0,0.00016986,2]
[400604825,1767741041055,-415.96953624,0.00017111,2]
[400604827,1767741041064,-3607.59131572,0.00017383,2]
[400604829,1767741041074,-181.0,0.0001749,2]
[400604831,1767741041083,-1227.13415056,0.00017525,7]
[400604833,1767741041092,-298.06700811,0.00017534,2]
[400604837,1767741041102,-1000.0,0.00018018,2]
[400604839,1767741041111,-15905.50371464,0.00018082,3]
[400604841,1767741041120,-191.914214,0.00018493,2]
[400604843,1767741041131,-217.0,0.0001874,3]
[400604845,1767741041140,-1506.328094,0.00019002,9]
[400604847,1767741041149,-299.5,0.00019004,2]
[400604849,1767741041159,-464.58935217,0.00019111,2]
[400604851,1767741041168,-648.93473211,0.00019178,2]
[400604853,1767741041178,-2612.25,0.000192,2]
[400604855,1767741041187,-224.03,0.000192,2]
[400604857,1767741041196,-284.42,0.000192,2]
[400604859,1767741041206,-22465.31,0.000192,2]
[400604861,1767741041214,-167.75,0.000192,2]
[400604863,1767741041223,-1000.0,0.0001982,2]
[400604864,1767741041232,-244.0,0.0001982,2]
[400604866,1767741041242,-181.04000005,0.0002,2]
[400604869,1767741041252,-210.16908342,0.0002,2]
[400604870,1767741041261,-8160.89671705,0.00020248,2]
[400604872,1767741041270,-1798.13902225,0.00020479,12]
[400604874,1767741041280,-299.5,0.00020549,2]
[400604877,1767741041290,-172.0,0.00020932,3]
[400604878,1767741041299,-3000.0,0.00021,2]
[400604880,1767741041309,-3000.0,0.0002101,2]
[400604882,1767741041318,-500.0,0.00021013,2]
[400604884,1767741041328,-500.0,0.00021013,2]
[400604886,1767741041341,-500.0,0.00021013,2]
[400604888,1767741041350,-500.0,0.00021013,2]
[400604890,1767741041360,-500.0,0.00021013,2]
[400604892,1767741041370,-500.0,0.00021013,2]
[400604894,1767741041379,-500.0,0.00021013,2]
[400604896,1767741041388,-500.0,0.00021013,2]
[400604898,1767741041397,-500.0,0.00021013,2]
[400604900,1767741041407,-500.0,0.00021013,2]
[400604902,1767741041417,-500.0,0.00021013,2]
[400604904,1767741041426,-500.0,0.00021013,2]
[400604906,1767741041435,-500.0,0.00021013,2]
[400604908,1767741041445,-500.0,0.00021013,2]
[400604910,1767741041455,-500.0,0.00021013,2]
[400604912,1767741041465,-500.0,0.00021013,2]
[400604914,1767741041474,-511.14869574,0.00021013,2]
[400604916,1767741041484,-3000.0,0.0002102,2]
[400604918,1767741041493,-3000.0,0.0002103,2]
[400604920,1767741041504,-5210.402483,0.0002104,2]
[400604922,1767741041513,-513.20916809,0.00021111,2]
[400604924,1767741041523,-3607.59131572,0.00021194,2]
[400604926,1767741041533,-1000.0,0.00021802,10]
[400604928,1767741041543,-492.0,0.00021802,10]
[400604930,1767741041552,-475.0,0.00021896,7]
[400604932,1767741041561,-191.914214,0.00021918,2]
[400604934,1767741041571,-195.05,0.00021923,2]
[400604936,1767741041580,-2101.20495276,0.00021955,15]
[400604938,1767741041590,-516.52,0.00022,2]
[400604940,1767741041599,-33705.33957013,0.00022,2]
[400604942,1767741041608,-2875.05,0.00022,7]
[400604944,1767741041619,-299.5,0.00022094,2]
[400604946,1767741041628,-300.0,0.00022466,2]
[400604948,1767741041638,-2612.25,0.000227,14]
[400604950,1767741041647,-284.42,0.000227,7]
[400604952,1767741041657,-224.03,0.000227,7]
[400604954,1767741041667,-22465.31,0.000227,2]
[400604956,1767741041676,-1041.66666667,0.00023,3]
[400604958,1767741041686,-450.0,0.00023014,2]
[400604960,1767741041695,-475.0,0.00023103,7]
[400604962,1767741041704,-561.82898402,0.00023111,2]
[400604964,1767741041714,-175.0,0.00023123,9]
[400604966,1767741041723,-2000.0,0.00023134,7]
[400604968,1767741041733,-2000.0,0.00023134,7]
[400604970,1767741041742,-2000.0,0.00023134,7]
[400604972,1767741041751,-188.515,0.00023134,7]
[400604974,1767741041762,-2414.46729335,0.00023432,18]
[400604976,1767741041771,-600.0,0.00023562,2]
[400604978,1767741041781,-299.5,0.00023639,2]
[400604980,1767741041790,-8160.89671705,0.00023654,2]
[400604982,1767741041800,-500.0,0.00023683,2]
[400604984,1767741041809,-2000.0,0.0002374,7]
[400604986,1767741041819,-2300.0,0.00023824,2]
[400604988,1767741041828,-2300.0,0.0002392,2]
[400604990,1767741041838,-2300.0,0.00023954,2]
[400604992,1767741041847,-1000.0,0.00023982,10]
[400604993,1767741041856,-791.0,0.00023982,10]
[400604995,1767741041866,-2300.0,0.00023985,2]
[400604997,1767741041875,-1041.66666667,0.00024,7]
[400604999,1767741041884,-500.0,0.00024096,2]
[400605001,1767741041894,-750.0,0.0002411,2]
[400605003,1767741041904,-2300.0,0.00024175,2]
[400605005,1767741041913,-2875.05,0.000242,7]
[400605007,1767741041922,-2300.0,0.00024409,2]
[400605009,1767741041932,-15905.49,0.000245,3]
[400605011,1767741041942,-2000.0,0.00024553,7]
[400605013,1767741041951,-500.0,0.00024554,2]
[400605015,1767741041961,-500.0,0.00024565,2]
[400605017,1767741041971,-15905.49,0.000246,3]
[400605019,1767741041981,-900.0,0.00024658,2]
[400605021,1767741041991,-200.0,0.00024658,2]
[400605023,1767741042000,-500.0,0.00024658,2]
[400605025,1767741042010,-195.05,0.0002466,2]
[400605027,1767741042019,-284.42,0.000247,7]
[400605029,1767741042029,-2612.25,0.000247,14]
[400605031,1767741042038,-224.03,0.000247,7]
[400605032,1767741042047,-22465.31,0.000247,2]
[400605033,1767741042056,-9679.57479427,0.00024744,2]
[400605034,1767741042065,-500.0,0.00024795,2]
[400605035,1767741042075,-257644.98719,0.000248,2]
[400605036,1767741042085,-2300.0,0.00024844,2]
[400605037,1767741042094,-151.0,0.000249,7]
[400605038,1767741042104,-151.0,0.000249,7]
[400605039,1767741042113,-164.05427,0.000249,7]
[400605040,1767741042123,-264.749291,0.000249,7]
[400605041,1767741042132,-200.222601,0.000249,7]
[400605042,1767741042141,-264.749291,0.000249,7]
[400605043,1767741042151,-200.222601,0.000249,7]
[400605044,1767741042160,-200.222601,0.000249,7]
[400605053,1767741042282,-264.749291,0.000249,7]
[400605055,1767741042292,-200.222601,0.000249,7]
[400605057,1767741042302,-264.749291,0.000249,7]
[400605059,1767741042312,-151.0,0.000249,7]
[400605061,1767741042322,-151.0,0.000249,7]
[400605063,1767741042335,-257.45092,0.000249,7]
[400605065,1767741042344,-151.0,0.000249,7]
[400605067,1767741042354,-500.0,0.000249,7]
[400605069,1767741042364,-500.0,0.000249,7]
[400605071,1767741042375,-500.0,0.000249,7]
[400605073,1767741042384,-500.0,0.000249,7]
[400605075,1767741042393,-152.500089,0.000249,7]
[400605077,1767741042403,-151.0,0.000249,7]
[400605079,1767741042412,-155.865907,0.000249,7]
[400605081,1767741042422,-151.0,0.000249,7]
[400605083,1767741042432,-677.96642,0.000249,7]
[400605085,1767741042441,-677.96642,0.000249,7]
[400605087,1767741042451,-677.96642,0.000249,7]
[400605089,1767741042460,-677.96642,0.000249,7]
[400605091,1767741042469,-151.0,0.000249,7]
[400605093,1767741042478,-213.83934,0.000249,7]
[400605095,1767741042488,-151.0,0.000249,7]
[400605097,1767741042497,-151.0,0.000249,7]
[400605099,1767741042506,-631081.21536,0.000249,2]
[400605101,1767741042516,-2300.0,0.00024903,2]
[400605103,1767741042526,-2737.0762107,0.00024909,20]
[400605105,1767741042536,-500.0,0.00024932,2]
[400605107,1767741042545,-1041.66666667,0.00025,3]
[400605109,1767741042554,-3607.59131572,0.00025004,2]
[400605111,1767741042563,-500.0,0.00025069,2]
[400605113,1767741042573,-610.44879994,0.00025111,2]
[400605115,1767741042582,-2300.0,0.00025176,7]
[400605117,1767741042591,-299.5,0.00025184,2]
[400605119,1767741042600,-250.0,0.00025205,2]
[400605121,1767741042609,-880.39814706,0.00025205,2]
[400605123,1767741042619,-500.0,0.00025206,2]
[400605125,1767741042631,-500.0,0.00025275,7]
[400605127,1767741042641,-1000.0,0.00025283,30]
[400605129,1767741042650,-1000.0,0.00025283,30]
[400605131,1767741042659,-1000.0,0.00025283,30]
[400605133,1767741042668,-1000.0,0.00025283,30]
[400605135,1767741042678,-1000.0,0.00025283,30]
[400605137,1767741042687,-1000.0,0.00025283,30]
[400605139,1767741042696,-1000.0,0.00025283,30]
[400605141,1767741042705,-1000.0,0.00025283,30]
[400605143,1767741042714,-1000.0,0.00025283,30]
[400605145,1767741042723,-516.52,0.000253,2]
[400605147,1767741042732,-176.0,0.00025315,16]
[400605149,1767741042741,-191.914214,0.00025342,2]
[400605151,1767741042750,-500.0,0.00025343,2]
[400605153,1767741042760,-2000.0,0.00025366,7]
[400605155,1767741042769,-500.0,0.0002548,2]
[400605156,1767741042779,-500.0,0.00025508,7]
[400605158,1767741042789,-2300.0,0.00025561,7]
[400605161,1767741042799,-500.0,0.00025564,7]
[400605162,1767741042809,-500.0,0.00025617,2]
[400605164,1767741042818,-2875.05,0.000257,7]
[400605166,1767741042827,-500.0,0.00025726,7]
[400605168,1767741042837,-350.0,0.00025753,2]
[400605170,1767741042846,-500.0,0.00025754,2]
[400605173,1767741042856,-2300.0,0.00025842,7]
[400605175,1767741042865,-632.0,0.00025853,2]
[400605176,1767741042875,-504.0,0.00025891,2]
[400605178,1767741042884,-327.02201212,0.00026,2]
[400605181,1767741042895,-1308.08804848,0.00026,2]
[400605183,1767741042904,-2943.19810908,0.00026,2]
[400605185,1767741042913,-5232.35219392,0.00026,2]
[400605186,1767741042923,-8175.55030299,0.00026,2]
[400605188,1767741042933,-11772.79243631,0.00026,2]
[400605191,1767741042945,-1020.73276343,0.00026,2]
[400605193,1767741042955,-9679.57479422,0.00026136,2]
[400605195,1767741042964,-279.35774616,0.00026151,7]
[400605197,1767741042974,-632.0,0.00026161,2]
[400605199,1767741042984,-2000.0,0.00026179,7]
[400605201,1767741042994,-2300.0,0.00026193,7]
[400605203,1767741043004,-2300.0,0.00026194,7]
[400605205,1767741043013,-500.0,0.00026201,7]
[400605207,1767741043022,-632.0,0.00026213,7]
[400605209,1767741043033,-450.0,0.00026301,2]
[400605211,1767741043042,-632.0,0.00026357,2]
[400605213,1767741043052,-1000.0,0.0002638,30]
[400605215,1767741043061,-1000.0,0.0002638,30]
[400605217,1767741043070,-3068.33225077,0.00026386,23]
[400605218,1767741043080,-2612.25,0.000264,14]
[400605220,1767741043089,-284.42,0.000264,7]
[400605222,1767741043100,-224.03,0.000264,7]
[400605225,1767741043109,-22465.31,0.000264,2]
[400605227,1767741043119,-500.0,0.00026428,7]
[400605229,1767741043130,-632.0,0.00026445,7]
[400605231,1767741043139,-632.0,0.00026495,2]
[400605233,1767741043148,-500.0,0.00026497,7]
[400605235,1767741043157,-188.11386458,0.00026587,2]
[400605237,1767741043167,-2300.0,0.00026598,7]
[400605239,1767741043176,-2300.0,0.00026619,7]
[400605241,1767741043185,-632.0,0.00026663,2]
[400605243,1767741043194,-500.0,0.00026667,7]
[400605245,1767741043203,-500.0,0.00026688,7]
[400605248,1767741043213,-632.0,0.00026723,2]
[400605251,1767741043222,-299.5,0.00026729,2]
[400605253,1767741043231,-632.0,0.00026733,2]
[400605255,1767741043240,-2300.0,0.00026747,7]
[400605257,1767741043249,-632.0,0.00026766,2]
[400605259,1767741043258,-2300.0,0.00026821,7]
[400605261,1767741043267,-632.0,0.00026841,2]
[400605263,1767741043277,-550.0,0.00026849,2]
[400605265,1767741043286,-632.0,0.00026928,2]
[400605267,1767741043296,-500.0,0.00026947,7]
[400605269,1767741043306,-2000.0,0.00026992,7]
[400605271,1767741043315,-184.0,0.00027,7]
[400605273,1767741043326,-1019.0,0.00027,2]
[400605275,1767741043340,-1041.66666667,0.00027,7]
[400605277,1767741043350,-632.0,0.00027033,2]